fUSD/lending_fUSD_20260624
["ID","MTS","AMOUNT","RATE_DAILY","PERIOD"]
[426308450,1782270646000,-500.0,0.00014999,2]
[426308429,1782270646000,-857.17,0.00014999,2]
[426308444,1782270646000,-500.0,0.00014999,2]
[426308420,1782270646000,-857.17,0.00014999,2]
[426308419,1782270646000,-857.17,0.00014999,2]
[426308421,1782270646000,-857.17,0.00014999,2]
[426308422,1782270646000,-857.17,0.00014999,2]
[426308424,1782270646000,-857.17,0.00014999,2]
[426308428,1782270646000,-857.17,0.00014999,2]
[426308473,1782270646000,-1450.59,0.00014999,2]
[426308427,1782270646000,-857.17,0.00014999,2]
[426308423,1782270646000,-857.17,0.00014999,2]
[426308430,1782270646000,-857.17,0.00014999,2]
[426308426,1782270646000,-857.17,0.00014999,2]
[426308433,1782270646000,-857.17,0.00014999,2]
[426308434,1782270646000,-857.17,0.00014999,2]
[426308425,1782270646000,-857.17,0.00014999,2]
[426308431,1782270646000,-857.17,0.00014999,2]
[426308436,1782270646000,-857.17,0.00014999,2]
[426308435,1782270646000,-857.17,0.00014999,2]
[426308437,1782270646000,-857.17,0.00014999,2]
[426308441,1782270646000,-500.0,0.00014999,2]
[426308439,1782270646000,-500.0,0.00014999,2]
[426308438,1782270646000,-857.26257552,0.00014999,2]
[426308440,1782270646000,-500.0,0.00014999,2]
[426308442,1782270646000,-500.0,0.00014999,2]
[426308445,1782270646000,-500.0,0.00014999,2]
[426308443,1782270646000,-500.0,0.00014999,2]
[426308447,1782270646000,-500.0,0.00014999,2]
[426308475,1782270646000,-1450.59,0.00014999,2]
[426308520,1782270646000,-151.0,0.00014999,2]
[426308476,1782270646000,-1450.68123912,0.00014999,2]
[426308508,1782270646000,-500.0,0.00014999,2]
[426308510,1782270646000,-500.0,0.00014999,2]
[426308507,1782270646000,-500.0,0.00014999,2]
[426308514,1782270646000,-188.85698579,0.00014999,2]
[426308512,1782270646000,-500.0,0.00014999,2]
[426308509,1782270646000,-500.0,0.00014999,2]
[426308511,1782270646000,-500.0,0.00014999,2]
[426308513,1782270646000,-500.0,0.00014999,2]
[426308515,1782270646000,-500.0,0.00014999,2]
[426308528,1782270646000,-500.0,0.00014999,2]
[426308519,1782270646000,-151.0,0.00014999,2]
[426308525,1782270646000,-500.0,0.00014999,2]
[426308516,1782270646000,-500.0,0.00014999,2]
[426308524,1782270646000,-500.0,0.00014999,2]
[426308517,1782270646000,-456.55695929,0.00014999,2]
[426308518,1782270646000,-151.0,0.00014999,2]
[426308527,1782270646000,-500.0,0.00014999,2]
[426308521,1782270646000,-151.0,0.00014999,2]
[426308523,1782270646000,-500.0,0.00014999,2]
[426308526,1782270646000,-500.0,0.00014999,2]
[426308532,1782270646000,-500.0,0.00014999,2]
[426308533,1782270646000,-500.0,0.00014999,2]
[426308530,1782270646000,-500.0,0.00014999,2]
[426308529,1782270646000,-500.0,0.00014999,2]
[426308531,1782270646000,-500.0,0.00014999,2]
[426308505,1782270646000,-500.0,0.00014999,2]
[426308506,1782270646000,-500.0,0.00014999,2]
[426308480,1782270646000,-500.0,0.00014999,2]
[426308501,1782270646000,-500.0,0.00014999,2]
[426308472,1782270646000,-1450.59,0.00014999,2]
[426308474,1782270646000,-1450.59,0.00014999,2]
[426308477,1782270646000,-500.0,0.00014999,2]
[426308479,1782270646000,-500.0,0.00014999,2]
[426308478,1782270646000,-500.0,0.00014999,2]
[426308482,1782270646000,-500.0,0.00014999,2]
[426308483,1782270646000,-500.0,0.00014999,2]
[426308493,1782270646000,-500.0,0.00014999,2]
[426308486,1782270646000,-500.0,0.00014999,2]
[426308490,1782270646000,-500.0,0.00014999,2]
[426308485,1782270646000,-500.0,0.00014999,2]
[426308491,1782270646000,-500.0,0.00014999,2]
[426308502,1782270646000,-500.0,0.00014999,2]
[426308489,1782270646000,-500.0,0.00014999,2]
[426308498,1782270646000,-500.0,0.00014999,2]
[426308497,1782270646000,-378.46400016,0.00014999,2]
[426308496,1782270646000,-500.0,0.00014999,2]
[426308484,1782270646000,-500.0,0.00014999,2]
[426308503,1782270646000,-500.0,0.00014999,2]
[426308500,1782270646000,-500.0,0.00014999,2]
[426308504,1782270646000,-500.0,0.00014999,2]
[426308495,1782270646000,-500.0,0.00014999,2]
[426308488,1782270646000,-500.0,0.00014999,2]
[426308492,1782270646000,-500.0,0.00014999,2]
[426308487,1782270646000,-500.0,0.00014999,2]
[426308494,1782270646000,-500.0,0.00014999,2]
[426308581,1782270647000,-500.0,0.00014999,2]
[426308572,1782270647000,-500.0,0.00014999,2]
[426308574,1782270647000,-500.0,0.00014999,2]
[426308564,1782270647000,-500.0,0.00014999,2]
[426308570,1782270647000,-500.0,0.00014999,2]
[426308566,1782270647000,-500.0,0.00014999,2]
[426308569,1782270647000,-500.0,0.00014999,2]
[426308563,1782270647000,-500.0,0.00014999,2]
[426308568,1782270647000,-500.0,0.00014999,2]
[426308582,1782270647000,-500.0,0.00014999,2]
[426308562,1782270647000,-500.0,0.00014999,2]
[426308579,1782270647000,-500.0,0.00014999,2]
[426308578,1782270647000,-500.0,0.00014999,2]
[426308575,1782270647000,-500.0,0.00014999,2]
[426308571,1782270647000,-500.0,0.00014999,2]
[426308580,1782270647000,-500.0,0.00014999,2]
[426308577,1782270647000,-500.0,0.00014999,2]
[426308576,1782270647000,-500.0,0.00014999,2]
[426308584,1782270647000,-500.0,0.00014999,2]
[426308592,1782270647000,-500.0,0.00014999,2]
[426308583,1782270647000,-500.0,0.00014999,2]
[426308593,1782270647000,-186.66599346,0.00014999,2]
[426308586,1782270647000,-500.0,0.00014999,2]
[426308589,1782270647000,-500.0,0.00014999,2]
[426308565,1782270647000,-500.0,0.00014999,2]
[426308573,1782270647000,-500.0,0.00014999,2]
[426308560,1782270647000,-500.0,0.00014999,2]
[426308544,1782270647000,-500.0,0.00014999,2]
[426308561,1782270647000,-500.0,0.00014999,2]
[426308537,1782270647000,-500.0,0.00014999,2]
[426308536,1782270647000,-500.0,0.00014999,2]
[426308535,1782270647000,-500.0,0.00014999,2]
[426308534,1782270647000,-500.0,0.00014999,2]
[426308545,1782270647000,-500.0,0.00014999,2]
[426308539,1782270647000,-500.0,0.00014999,2]
[426308538,1782270647000,-500.0,0.00014999,2]
[426308541,1782270647000,-500.0,0.00014999,2]
[426308540,1782270647000,-500.0,0.00014999,2]
[426308547,1782270647000,-500.0,0.00014999,2]
[426308546,1782270647000,-500.0,0.00014999,2]
[426308542,1782270647000,-500.0,0.00014999,2]
[426308567,1782270647000,-500.0,0.00014999,2]
[426308548,1782270647000,-500.0,0.00014999,2]
[426308588,1782270647000,-500.0,0.00014999,2]
[426308549,1782270647000,-500.0,0.00014999,2]
[426308558,1782270647000,-500.0,0.00014999,2]
[426308556,1782270647000,-500.0,0.00014999,2]
[426308550,1782270647000,-500.0,0.00014999,2]
[426308553,1782270647000,-500.0,0.00014999,2]
[426308555,1782270647000,-500.0,0.00014999,2]
[426308554,1782270647000,-500.0,0.00014999,2]
[426308551,1782270647000,-500.0,0.00014999,2]
[426308552,1782270647000,-500.0,0.00014999,2]
[426308559,1782270647000,-500.0,0.00014999,2]
[426308557,1782270647000,-500.0,0.00014999,2]
[426308543,1782270647000,-500.0,0.00014999,2]
[426308585,1782270647000,-500.0,0.00014999,2]
[426308591,1782270647000,-500.0,0.00014999,2]
[426308633,1782270647000,-646.931901,0.00015068,2]
[426308625,1782270647000,-646.931901,0.00015068,2]
[426308622,1782270647000,-150.0,0.00015068,2]
[426308623,1782270647000,-646.931901,0.00015068,2]
[426308619,1782270647000,-1398.72203181,0.00015058,2]
[426308627,1782270647000,-646.931901,0.00015068,2]
[426308626,1782270647000,-646.931901,0.00015068,2]
[426308649,1782270647000,-4427.13754854,0.00015081,2]
[426308630,1782270647000,-646.931901,0.00015068,2]
[426308629,1782270647000,-646.931901,0.00015068,2]
[426308632,1782270647000,-646.931901,0.00015068,2]
[426308643,1782270647000,-900.0,0.00015068,2]
[426308634,1782270647000,-646.931901,0.00015068,2]
[426308631,1782270647000,-646.931901,0.00015068,2]
[426308587,1782270647000,-500.0,0.00014999,2]
[426308639,1782270647000,-646.931901,0.00015068,2]
[426308641,1782270647000,-646.931901,0.00015068,2]
[426308635,1782270647000,-646.931901,0.00015068,2]
[426308642,1782270647000,-646.931904,0.00015068,2]
[426308637,1782270647000,-646.931901,0.00015068,2]
[426308638,1782270647000,-646.931901,0.00015068,2]
[426308636,1782270647000,-646.931901,0.00015068,2]
[426308648,1782270647000,-512.35580421,0.00015075,2]
[426308646,1782270647000,-1100.0,0.00015069,2]
[426308644,1782270647000,-250.0,0.00015068,2]
[426308645,1782270647000,-2500.0,0.00015069,2]
[426308647,1782270647000,-1350.0,0.00015069,7]
[426308640,1782270647000,-646.931901,0.00015068,2]
[426308621,1782270647000,-1238.3310321,0.00015062,2]
[426308624,1782270647000,-646.931901,0.00015068,2]
[426308620,1782270647000,-3706.19902788,0.00015058,2]
[426308594,1782270647000,-160.0,0.00014999,2]
[426308590,1782270647000,-500.0,0.00014999,2]
[426308595,1782270647000,-160.0,0.00014999,2]
[426308597,1782270647000,-300.0,0.00014999,2]
[426308628,1782270647000,-646.931901,0.00015068,2]
[426308599,1782270647000,-300.0,0.00014999,2]
[426308604,1782270647000,-429.57054548,0.00015,2]
[426308598,1782270647000,-300.0,0.00014999,2]
[426308601,1782270647000,-1961.0,0.00015,5]
[426308600,1782270647000,-308.10051478,0.00014999,2]
[426308606,1782270647000,-1916.07,0.00015,2]
[426308603,1782270647000,-1025994.44602716,0.00015,2]
[426308602,1782270647000,-1000.0,0.00015,2]
[426308596,1782270647000,-163.76835451,0.00014999,2]
[426308608,1782270647000,-2522.7355846,0.00015,14]
[426308618,1782270647000,-3068.64716504,0.00015053,2]
[426308607,1782270647000,-4959049.461503,0.00015,2]
[426308609,1782270647000,-160.86464396,0.00015,2]
[426308616,1782270647000,-220.00122967,0.00015,2]
[426308612,1782270647000,-541545.24255317,0.00015,2]
[426308610,1782270647000,-150.0,0.00015,2]
[426308614,1782270647000,-220.0011996,0.00015,2]
[426308611,1782270647000,-2084.95746349,0.00015,2]
[426308613,1782270647000,-1000.0,0.00015,2]
[426308615,1782270647000,-330.00184451,0.00015,2]
[426308617,1782270647000,-1238.3310321,0.0001505,2]
[426308605,1782270647000,-352.4172831,0.00015,2]
[426308653,1782270648000,-1891.94733475,0.00015131,2]
[426308651,1782270648000,-2978.90926005,0.00015122,2]
[426308652,1782270648000,-512.35580421,0.00015128,2]
[426308654,1782270648000,-2339.82055178,0.00015131,2]
[426308655,1782270648000,-682.69770417,0.00015133,2]
[426308656,1782270648000,-1095.4289186,0.00015133,2]
[426308650,1782270648000,-1778.12662277,0.00015119,2]
[426308677,1782270649000,-1778.12662277,0.00015208,2]
[426308682,1782270649000,-1778.12662277,0.00015234,2]
[426308678,1782270649000,-4427.13754854,0.00015214,2]
[426308673,1782270649000,-1778.12662277,0.00015192,2]
[426308681,1782270649000,-1238.3310321,0.00015223,2]
[426308684,1782270649000,-4427.13754854,0.00015249,2]
[426308666,1782270649000,-1238.3310321,0.00015156,2]
[426308667,1782270649000,-4427.13754854,0.00015157,2]
[426308669,1782270649000,-4427.13754854,0.00015167,2]
[426308671,1782270649000,-500.0,0.00015189,2]
[426308683,1782270649000,-11571.11404201,0.0001524,2]
[426308663,1782270649000,-151.70073144,0.000149,2]
[426308664,1782270649000,-3183.42791765,0.0001514,2]
[426308662,1782270649000,-976.07054605,0.0001386,2]
[426308670,1782270649000,-1778.12662277,0.00015188,2]
[426308661,1782270649000,-652.0,0.0001386,2]
[426308660,1782270649000,-763.95,0.0001514,2]
[426308659,1782270649000,-479.75963089,0.0001514,2]
[426308657,1782270649000,-1161.33386529,0.00015136,2]
[426308658,1782270649000,-76.99716681,0.00015136,2]
[426308668,1782270649000,-11571.11404201,0.00015163,2]
[426308674,1782270649000,-11571.11404201,0.00015196,2]
[426308665,1782270649000,-1778.12662277,0.00015142,2]
[426308672,1782270649000,-2000.0,0.00015189,2]
[426308701,1782270649000,-180.12240002,0.000112,2]
[426308702,1782270649000,-469.92217554,0.00015338,2]
[426308698,1782270649000,-1778.12662277,0.00015326,2]
[426308700,1782270649000,-611.557261,0.00015338,2]
[426308699,1782270649000,-1897.42982351,0.00015338,2]
[426308695,1782270649000,-1238.3310321,0.0001531,2]
[426308697,1782270649000,-300.0,0.00015324,2]
[426308694,1782270649000,-1398.72203181,0.00015305,2]
[426308693,1782270649000,-1517.64,0.000153,2]
[426308691,1782270649000,-4427.13754854,0.00015294,2]
[426308696,1782270649000,-3068.64716504,0.00015318,2]
[426308687,1782270649000,-1778.12662277,0.00015273,2]
[426308680,1782270649000,-512.35580421,0.00015222,2]
[426308689,1782270649000,-11571.11404201,0.0001529,2]
[426308679,1782270649000,-1778.12662277,0.00015217,2]
[426308686,1782270649000,-3068.64716504,0.00015263,2]
[426308675,1782270649000,-1778.12662277,0.00015205,2]
[426308690,1782270649000,-3706.19902788,0.00015294,2]
[426308688,1782270649000,-1778.12662277,0.00015288,2]
[426308692,1782270649000,-2978.90926005,0.00015297,2]
[426308685,1782270649000,-1778.12662277,0.00015255,2]
[426308676,1782270649000,-2978.90926005,0.00015208,2]
[426308708,1782270650000,-9648.67752455,0.00015464,2]
[426308707,1782270650000,-2332.998,0.00015464,2]
[426308705,1782270650000,-1500.0,0.00015418,2]
[426308704,1782270650000,-1352.51091582,0.00015378,2]
[426308703,1782270650000,-1778.12662277,0.00015346,2]
[426308706,1782270650000,-1480.93788585,0.00015464,2]
[426308710,1782270821000,4015.32721791,9.279e-05,8]
[426308714,1782271676000,-491.25177004,9.187e-05,2]
[426308726,1782271832000,-7285.7606857,9.188e-05,2]
[426308752,1782271832000,-25035.0,0.0001,2]
[426308751,1782271832000,-5763.4259,9.9e-05,2]
[426308750,1782271832000,-302.36,9.739e-05,2]
[426308748,1782271832000,-302.36,9.739e-05,2]
[426308747,1782271832000,-302.36,9.739e-05,2]
[426308746,1782271832000,-302.36,9.739e-05,2]
[426308744,1782271832000,-302.48,9.739e-05,2]
[426308745,1782271832000,-302.35,9.739e-05,2]
[426308742,1782271832000,-302.36,9.737e-05,2]
[426308743,1782271832000,-302.36,9.738e-05,2]
[426308740,1782271832000,-302.36,9.683e-05,2]
[426308741,1782271832000,-302.35,9.693e-05,2]
[426308749,1782271832000,-302.36,9.739e-05,2]
[426308737,1782271832000,-302.35,9.647e-05,2]
[426308738,1782271832000,-302.36,9.655e-05,2]
[426308739,1782271832000,-302.36,9.672e-05,2]
[426308736,1782271832000,-160.0,9.639e-05,2]
[426308735,1782271832000,-244.45176337,9.638e-05,2]
[426308733,1782271832000,-302.36,9.627e-05,2]
[426308732,1782271832000,-302.48,9.627e-05,2]
[426308731,1782271832000,-302.36,9.613e-05,2]
[426308729,1782271832000,-302.35,9.601e-05,2]
[426308728,1782271832000,-221.0,9.279e-05,2]
[426308727,1782271832000,-500.0,9.188e-05,2]
[426308730,1782271832000,-302.36,9.604e-05,2]
[426308725,1782271832000,-154.16107767,9.187e-05,2]
[426308734,1782271832000,-57.90823663,9.638e-05,2]
[426308754,1782271832000,-5529.0,0.000103,3]
[426308761,1782271832000,-166.66,0.0001233,2]
[426308755,1782271832000,-5529.0,0.000106,5]
[426308784,1782271832000,-500.0,0.00013989,2]
[426308783,1782271832000,-235.821393,0.0001389,2]
[426308782,1782271832000,-319.0,0.00013852,2]
[426308781,1782271832000,-314.0,0.00013852,2]
[426308780,1782271832000,-310.0,0.00013852,2]
[426308779,1782271832000,-317.0,0.00013852,2]
[426308778,1782271832000,-200.0,0.00013699,2]
[426308777,1782271832000,-500.0,0.00013698,2]
[426308773,1782271832000,-166.66,0.00013628,2]
[426308753,1782271832000,-216.42324807,0.00010219,2]
[426308776,1782271832000,-500.0,0.00013698,2]
[426308772,1782271832000,-1109.81,0.00013608,2]
[426308771,1782271832000,-45306.6,0.00013608,2]
[426308775,1782271832000,-500.0,0.00013698,2]
[426308774,1782271832000,-500.0,0.00013698,2]
[426308768,1782271832000,-150.0,0.00013425,2]
[426308757,1782271832000,-299.99,0.00012087,2]
[426308770,1782271832000,-279.94,0.00013571,2]
[426308759,1782271832000,-160.48,0.00012118,2]
[426308760,1782271832000,-386.35,0.00012119,2]
[426308758,1782271832000,-200.0,0.00012113,2]
[426308764,1782271832000,-150.99,0.00012893,2]
[426308756,1782271832000,-279.94,0.00012063,2]
[426308762,1782271832000,-166.66,0.0001259,2]
[426308766,1782271832000,-166.66,0.00013369,2]
[426308767,1782271832000,-150.0,0.00013425,2]
[426308765,1782271832000,-166.66,0.00013109,2]
[426308769,1782271832000,-236.54387101,0.00013425,2]
[426308763,1782271832000,-166.66,0.0001285,2]
[426308792,1782271833000,-10000.0,0.00014899,2]
[426308793,1782271833000,-1891.94733475,0.00014902,2]
[426308791,1782271833000,-368.78,0.00014773,2]
[426308789,1782271833000,-166.264,0.00014499,2]
[426308786,1782271833000,-205.0342333,0.00014187,2]
[426308785,1782271833000,-160.48,0.00014138,2]
[426308787,1782271833000,-169.39,0.00014252,2]
[426308788,1782271833000,-2699.582,0.00014499,2]
[426308794,1782271833000,-270.00427378,0.00015,2]
[426308790,1782271833000,-582.16999926,0.00014648,2]
[426308795,1782271833000,-1000.0,0.00015,2]
[426308800,1782271833000,-1350.0,0.00015052,7]
[426308796,1782271833000,-1958.32855832,0.00015041,2]
[426308799,1782271833000,-1100.0,0.00015052,2]
[426308798,1782271833000,-2500.0,0.00015052,2]
[426308802,1782271833000,-279.94,0.00015079,2]
[426308801,1782271833000,-900.0,0.00015068,2]
[426308803,1782271833000,-310.0,0.00015131,2]
[426308804,1782271833000,-167.68458441,0.0001514,2]
[426308805,1782271833000,-366.19912099,0.00015141,2]
[426308807,1782271833000,-15538.03785299,0.00015141,2]
[426308806,1782271833000,-2000.0,0.00015141,2]
[426308811,1782271833000,-265.84703492,9.185e-05,2]
[426308797,1782271833000,-6830.8209,0.00015041,2]
[426308815,1782271838000,-323.2227685,9.185e-05,2]
[426308814,1782271838000,-234.15296508,9.185e-05,2]
[426308851,1782271840000,-176.7772315,9.185e-05,2]
[426308852,1782271840000,-500.0,9.185e-05,2]
[426308855,1782271840000,-10.71365902,9.185e-05,2]
[426308856,1782271840000,-261.30808832,9.185e-05,2]
[426308854,1782271840000,-500.0,9.185e-05,2]
[426308853,1782271840000,-500.0,9.185e-05,2]
[426308857,1782271840000,-297.11105364,9.185e-05,2]
[426308858,1782271840000,-202.88894636,9.185e-05,2]
[426308859,1782271840000,-297.11105364,9.185e-05,2]
[426308860,1782271840000,-500.0,9.185e-05,2]
[426308861,1782271840000,-500.0,9.185e-05,2]
[426308863,1782271840000,-500.0,9.185e-05,2]
[426308870,1782271840000,-2500.0,0.00015141,2]
[426308862,1782271840000,-500.0,9.185e-05,2]
[426308876,1782271840000,-6871.58951468,0.00015218,2]
[426308864,1782271840000,-500.0,9.185e-05,2]
[426308874,1782271840000,-752.10586299,0.00015218,2]
[426308873,1782271840000,-1974.80363724,0.00015218,2]
[426308871,1782271840000,-816.1780948,0.00015168,2]
[426308872,1782271840000,-3114.41415774,0.00015218,2]
[426308875,1782271840000,-665.0,0.00015218,2]
[426308868,1782271840000,-250.0,0.00015068,2]
[426308866,1782271840000,-500.0,9.185e-05,2]
[426308869,1782271840000,-17788.42024701,0.00015141,2]
[426308865,1782271840000,-500.0,9.185e-05,2]
[426308867,1782271840000,-1186.5,0.00015041,2]
[426308884,1782271846000,-168.93385872,9.185e-05,2]
[426308887,1782271846000,-249.4809438,9.185e-05,2]
[426308885,1782271846000,-163.4235083,9.185e-05,2]
[426308886,1782271846000,-500.0,9.185e-05,2]
[426308888,1782271846000,-250.5190562,9.185e-05,2]
[426308889,1782271846000,-500.0,9.185e-05,2]
[426308890,1782271846000,-500.0,9.185e-05,2]
[426308892,1782271846000,-315.19419112,9.185e-05,2]
[426308891,1782271846000,-196.92853141,9.185e-05,2]
[426308893,1782271846000,-222.02576818,9.185e-05,2]
[426308896,1782271846000,-500.0,9.185e-05,2]
[426308894,1782271846000,-500.0,9.185e-05,2]
[426308903,1782271846000,-2676.57294505,0.00015218,2]
[426308904,1782271846000,-1883.05427486,0.00015218,2]
[426308901,1782271846000,-275.14764415,0.00015218,2]
[426308902,1782271846000,-1079.88131655,0.00015218,2]
[426308895,1782271846000,-500.0,9.185e-05,2]
[426308897,1782271846000,-523.94999975,0.00014807,2]
[426308898,1782271846000,-1696.3719934,0.00015218,2]
[426308900,1782271846000,-627.91947126,0.00015218,2]
[426308899,1782271846000,-1234.51860969,0.00015218,2]
[426308910,1782271847000,-958.94668211,0.00015218,2]
[426308909,1782271847000,-1573.08453105,0.00015218,2]
[426308912,1782272194000,1440.180911,0.000209,30]
[426308913,1782272403000,244.0,0.00020153,120]
[426308914,1782272494000,-1000.0,0.00019178,17]
[426308915,1782272511000,-16084.33131349,0.0001995,15]
[426308916,1782272569000,-3000.0,0.00019178,12]
[426308917,1782272599000,-250.0,0.00019178,8]
[426308922,1782272617000,-1099.0,0.00016438,5]
[426308918,1782272617000,-1032.0,0.00015374,5]
[426308919,1782272617000,-160.68789649,0.000158,5]
[426308920,1782272617000,-600.0,0.000159,5]
[426308923,1782272617000,-250.0,0.00017808,6]
[426308925,1782272617000,-1200.0,0.000179,6]
[426308924,1782272617000,-1385.0,0.000179,5]
[426308926,1782272617000,-1800.0,0.000189,6]
[426308927,1782272617000,-365.95417538,0.0001901,7]
[426308921,1782272617000,-5529.0,0.000162,5]
[426308929,1782272618000,-500.0,0.00019355,7]
[426308928,1782272618000,-3000.0,0.00019178,7]
[426308931,1782272618000,-500.0,0.00019355,7]
[426308930,1782272618000,-500.0,0.00019355,7]
[426308932,1782272618000,-500.0,0.00019355,7]
[426308933,1782272618000,-500.0,0.00019355,7]
[426308936,1782272618000,-556.31,0.00019355,7]
[426308934,1782272618000,-500.0,0.00019355,7]
[426308937,1782272618000,-472.03,0.00019355,7]
[426308939,1782272618000,-216.42324807,0.0002,7]
[426308938,1782272618000,-3004.19797616,0.0002,7]
[426308935,1782272618000,-500.0,0.00019355,7]
[426308940,1782272644000,233.533976,0.0002,7]
[426308941,1782272709000,250.0,0.00017808,6]
[426308942,1782272710000,250.0,0.00019178,8]
[426308943,1782272736000,1282.64528639,0.00015217,5]
[426308947,1782272745000,1282.64528638,0.00015217,5]
[426308954,1782272850000,250.0,0.00019178,8]
[426308955,1782272865000,-2500.0,0.000199,7]
[426308957,1782272887000,-1800.0,0.000179,6]
[426308956,1782272887000,-250.0,0.00017808,6]
[426308964,1782272931000,-234.12295675,8.556e-05,2]
[426308962,1782272931000,-168.0,8.475e-05,2]
[426308963,1782272931000,-159.55,8.501e-05,2]
[426308961,1782272931000,-168.0,8.392e-05,2]
[426308960,1782272931000,-250.0,8.373e-05,2]
[426308958,1782272931000,-150.0,8.246e-05,2]
[426308959,1782272931000,-155.56788489,8.31e-05,2]
[426308965,1782272953000,1500.0,0.00023,120]
[426308967,1782272953000,-86.91511278,8.556e-05,2]
[426308966,1782272953000,-265.87704325,8.556e-05,2]
[426308968,1782272968000,1345.676,0.00022,30]
[426308982,1782273031000,-500.0,9.087e-05,2]
[426308990,1782273031000,-250.0,9.412e-05,2]
[426308995,1782273031000,-300.0,9.99e-05,2]
[426309003,1782273031000,-150.0,0.00010277,2]
[426308984,1782273031000,-150.0,9.24e-05,2]
[426308988,1782273031000,-107.9267716,9.326e-05,2]
[426308983,1782273031000,-150.0,9.155e-05,2]
[426308979,1782273031000,-150.0,8.898e-05,2]
[426308975,1782273031000,-232.7270889,8.557e-05,2]
[426308980,1782273031000,-150.0,8.984e-05,2]
[426308977,1782273031000,-150.0,8.727e-05,2]
[426308981,1782273031000,-150.0,9.069e-05,2]
[426308978,1782273031000,-150.0,8.812e-05,2]
[426308997,1782273031000,-268.2537011,0.00010216,2]
[426308974,1782273031000,-265.0809327,8.556e-05,2]
[426308973,1782273031000,-362.7585741,8.556e-05,2]
[426308976,1782273031000,-150.0,8.641e-05,2]
[426309001,1782273031000,-192.38,0.00010252,2]
[426308986,1782273031000,-45.0732284,9.326e-05,2]
[426309000,1782273031000,-2890.55,0.00010229,2]
[426309016,1782273031000,-3563.04,0.00010549,2]
[426308998,1782273031000,-603.19159225,0.00010216,2]
[426309015,1782273031000,-310.75,0.00010533,2]
[426309011,1782273031000,-151.0,0.000105,2]
[426309010,1782273031000,-151.0,0.000105,2]
[426309013,1782273031000,-160.0,0.00010512,2]
[426309012,1782273031000,-216.42324807,0.00010511,2]
[426309005,1782273031000,-20622.93,0.00010316,2]
[426309008,1782273031000,-2952.62,0.00010433,2]
[426309014,1782273031000,-4716.71,0.00010516,2]
[426309004,1782273031000,-170.46,0.00010277,2]
[426309009,1782273031000,-210.713394,0.000105,2]
[426309007,1782273031000,-262.25,0.00010373,2]
[426308996,1782273031000,-500.0,0.00010216,2]
[426308993,1782273031000,-159.55,9.564e-05,2]
[426309002,1782273031000,-1024.44,0.00010264,2]
[426309006,1782273031000,-255.13,0.00010346,2]
[426308999,1782273031000,-3701.55,0.00010217,2]
[426309032,1782273032000,-299.71,0.00010927,2]
[426309036,1782273032000,-166.66,0.00010959,2]
[426309034,1782273032000,-187.36,0.00010932,2]
[426309035,1782273032000,-150.0,0.00010959,2]
[426309037,1782273032000,-1000.0,0.00010967,2]
[426309042,1782273032000,-500.0,0.00011206,2]
[426309041,1782273032000,-166.66,0.00011178,2]
[426309039,1782273032000,-166.66,0.00011068,2]
[426309040,1782273032000,-915.0,0.00011131,2]
[426309033,1782273032000,-500.0,0.00010932,2]
[426309044,1782273032000,-166.66,0.00011288,2]
[426309038,1782273032000,-159.27,0.00010968,2]
[426309030,1782273032000,-1852.42,0.00010874,2]
[426309023,1782273032000,-3728.81,0.00010672,2]
[426309027,1782273032000,-555.84,0.00010826,2]